Cogmind - Beta 13 @@@ ROGUE MODE // 2024.06.24 @ 15:35:58 Player: Attma Result: Destroyed by Y-45 Defender with Heavy Assault Rifle Performance ------------- Evolutions (0) 0 Regions Visited (2) 400 Robots Destroyed (21) 105 Value Destroyed (463) 463 Prototype IDs (4) 80 Alien Tech Used (0) 0 Bonus (28) 28 TOTAL SCORE: 1076 Bonus ------- Follower Combat Kills 60 Friendly Fire -32 Cogmind --------- Core Integrity 0/250 Matter 272/300 Energy 125/125 System Corruption 0% Temperature Cool (10) Movement Rolling (130) Ox2 Location -10/Mines Parts ------- > --- POWER (1) -------- Light Ion Engine > --- PROPULSION (2) --- Compact Wheel Compact Wheel > --- UTILITY (2) ------ Huge Storage Unit Experimental Sensor Array > --- WEAPON (2) ------- Light Assault Rifle Grenade Launcher > --- INVENTORY (25) --- Light Ion Engine Light Ion Engine Aluminum Leg Aluminum Leg Wheel Flight Unit Flight Unit Large Battery (200) High-capacity Matter Pod (0) Targeting Computer Improved Targeting Computer Core Shielding Power Shielding Light Armor Plating Light Armor Plating Light Armor Plating EM Pulse Gun Small Laser Assault Rifle Assault Rifle Light Assault Rifle Grenade Launcher Grenade Launcher Grenade Launcher Welding Torch Peak State ------------ > --- POWER ------------ Light Ion Engine > --- PROPULSION ------- Compact Wheel Compact Wheel > --- UTILITY ---------- Huge Storage Unit Experimental Sensor Array > --- WEAPON ----------- Grenade Launcher Grenade Launcher > --- INVENTORY -------- Light Ion Engine Aluminum Leg Aluminum Leg Wheel Large Battery Large Battery High-capacity Matter Pod High-capacity Matter Pod Targeting Computer Improved Targeting Computer Core Shielding Power Shielding Light Armor Plating Light Armor Plating Light Armor Plating EM Pulse Gun Small Laser Assault Rifle Assault Rifle Light Assault Rifle Grenade Launcher Grenade Launcher Welding Torch [Rating: 17] Favorites ----------- Power Light Ion Engine Engine Light Ion Engine Propulsion Compact Wheel Leg Aluminum Leg Wheel Compact Wheel Utility Huge Storage Unit Device Experimental Sensor Array Storage Huge Storage Unit Protection Core Shielding Weapon Light Assault Rifle Ballistic Gun Light Assault Rifle Launcher Grenade Launcher Build | -11 -10 -10 ------- Run | Yrd Mat Min Slots Evolved . | . . . Power . | . . . Propulsion . | . . . Utility . | . . . Weapon . | . . . Parts Attached 30 | 3 22 5 Power 3 | . 3 . Engine 3 | . 3 . Core . | . . . Reactor . | . . . Propulsion 8 | 2 6 . Treads . | . . . Leg 3 | 1 2 . Wheel 5 | 1 4 . Hover . | . . . Flight . | . . . Utility 6 | 1 4 1 Device 1 | . . 1 Storage 4 | 1 3 . Processor . | . . . Hackware . | . . . Protection 1 | . 1 . Artifact . | . . . Weapon 13 | . 9 4 Energy Gun . | . . . Energy Cannon . | . . . Ballistic Gun 9 | . 7 2 Ballistic Cannon . | . . . Launcher 4 | . 2 2 Special Weapon . | . . . Impact Weapon . | . . . Slashing Weapon . | . . . Piercing Weapon . | . . . Special Melee Weapon . | . . . Unidentified Prototypes 1 | . . 1 Parts Lost 4 | . 4 . Power 1 | . 1 . Propulsion 1 | . 1 . Utility . | . . . Weapon 2 | . 2 . Highest Loss Streak 1 | . 1 . To Critical Strikes . | . . . Average Slot Usage (%) 91 | . 88 100 Engine 12 | . 11 14 Leg 6 | . 9 . Wheel 15 | . 11 28 Device 1 | . . 5 Storage 16 | . 17 14 Protection 9 | . 10 8 Ballistic Gun 22 | . 26 7 Launcher 5 | . . 20 Naked Turns . | . . . Heaviest Build 90 | 5 90 90 Greatest Support 32 | 10 32 32 Greatest Overweight (x) 27 | 1 27 2 Average Overweight (x) 2 | . 2 2 Largest Inventory Capacity 25 | 8 25 25 Average Capacity 22 | 7 22 25 Most Carried 25 | 8 21 25 Average Carried 13 | 5 11 22 Final Capacity 25 | 8 25 25 Final Carried 25 | 7 21 25 Class Distribution -------------------- 100% | Mutant Dominant Class ---------------- Mutant | -10/Materials Mutant | -10/Mines Resources | -11 -10 -10 ----------- Run | Yrd Mat Min Matter Collected 786 | 208 283 295 Remotely . | . . . Salvage Created 484 | . 388 96 Parts 35 | . 27 8 Haulers Intercepted . | . . . Recyclers Shooed . | . . . Parts Field Recycled . | . . . Retrieved Matter . | . . . Parts Self-Destructed . | . . . Prevented . | . . . Kills | -11 -10 -10 ------- Run | Yrd Mat Min Combat Hostiles Destroyed 19 | . 14 5 Guns 11 | . 11 . AOE 8 | . 3 5 Classes Destroyed 4 | . 3 1 Tunneler 1 | . 1 . Mechanic 1 | . . 1 Swarmer 9 | . 6 3 Grunt 10 | . 8 2 Best Kill Streak 4 | . 4 3 Combat Bots Only 3 | . 3 3 Max Kills in Single Turn 3 | . 2 3 Gunslinging . | . . . Exploded 3 | . 1 3 Melee . | . . . Uniques/NPCs Destroyed . | . . . Combat | -11 -10 -10 -------- Run | Yrd Mat Min Hostile Shots Fired 99 | . 88 11 Missed 23 | . 19 4 Damage Taken 834 | . 688 146 Core 253 | . 195 58 Absorbed by Shields . | . . . Redirected to Shielding 17 | . 17 . Core Remaining (%) 100 | 100 . . Volleys Fired 61 | . 57 4 Largest 2 | . 2 2 Hottest 60 | . 60 60 Shots Fired 116 | . 108 8 Gun 104 | . 102 2 Cannon . | . . . Launcher 12 | . 6 6 Special . | . . . Kinetic 104 | . 102 2 Thermal . | . . . Explosive 12 | . 6 6 Electromagnetic . | . . . Robot Hit Streak 6 | . 6 3 Robot Miss Streak 5 | . 5 3 Penetration Max . | . . . Secondary Targets . | . . . Shots Hit Robots 62 | . 59 3 Core Hits 47 | . 33 14 Critical Kills . | . . . Critical Parts Destroyed . | . . . Critical Strikes . | . . . Melee Attacks . | . . . Impact . | . . . Slashing . | . . . Piercing . | . . . Sneak Attacks . | . . . Combat Hostiles . | . . . Follow-up Attacks . | . . . Damage Inflicted 1036 | . 690 346 Guns 540 | . 524 16 Cannons . | . . . Explosions 496 | . 166 330 Melee . | . . . Ramming . | . . . Kinetic 540 | . 524 16 Thermal . | . . . Explosive 496 | . 166 330 Electromagnetic . | . . . Impact . | . . . Slashing . | . . . Piercing . | . . . Highest Corruption . | . . . Average Corruption . | . . . Corruption Purged . | . . . Corruption Blocked . | . . . Overload Shots . | . . . Overflow Damage 11 | . 11 . Projectiles . | . . . Explosions 11 | . 11 . Melee . | . . . Knockbacks . | . . . Impact . | . . . Kinetic . | . . . Secondary . | . . . Self-Inflicted Damage 48 | . . 48 Shots 3 | . . 3 Rammed . | . . . Targets Rammed . | . . . Kicked . | . . . Crushed . | . . . Highest Temperature 18 | . 18 10 Average Temperature 6 | . 6 7 Received Heat Transfer 249 | . 222 27 Siege Activations . | . . . Robots Corrupted . | . . . Combat Hostiles . | . . . Parts Fried . | . . . Impact Corruptions . | . . . Robots Melted . | . . . Combat Hostiles . | . . . Parts Melted . | . . . Heat Transferred . | . . . Parts Sabotaged . | . . . Parts Stolen . | . . . Parts Stripped . | . . . Power Chain Reactions . | . . . Alert | -11 -10 -10 ------- Run | Yrd Mat Min Peak Influence 150 | . 150 122 Initial 12 | . . 12 Average 58 | . 55 74 Maximum Alert Level . | . . . Low Security (%) 100 | 100 100 100 Level 1 . | . . . Level 2 . | . . . Level 3 . | . . . Level 4 . | . . . Level 5 . | . . . High Security . | . . . Max Security . | . . . Squads Dispatched 4 | . 3 1 Investigation 1 | . 1 . Extermination . | . . . Reinforcement 2 | . 2 . Assault 1 | . . 1 Garrison . | . . . Intercept . | . . . Searches Triggered . | . . . Construction Impeded . | . . . Haulers Reinforced . | . . . Active Scanning Responses . | . . . Cargo Convoy Interrupts . | . . . Stealth | -11 -10 -10 --------- Run | Yrd Mat Min Distress Signals 1 | . 1 . Communications Jammed . | . . . Distress Signals . | . . . Times Spotted 32 | . 23 9 Peak Tracking Total 3 | . 3 3 Tactical Retreats 1 | . 1 . Traps | -11 -10 -10 ------- Run | Yrd Mat Min Traps Triggered 2 | . 2 . Indirectly . | . . . Trap Hack Attempts . | . . . Triggered . | . . . Disarmed . | . . . Reprogrammed . | . . . Reused . | . . . Traps Extracted . | . . . Installed . | . . . Triggered . | . . . Machines | -11 -10 -10 ---------- Run | Yrd Mat Min Machines Disabled 2 | . . 2 Max in Single Turn 2 | . . 2 Machines Repaired . | . . . Machines Dismantled . | . . . Machines Sabotaged . | . . . Overloaded Fab Kills . | . . . Hacking | -11 -10 -10 --------- Run | Yrd Mat Min Machines Accessed 8 | . 7 1 Terminals 6 | . 5 1 Fabricators . | . . . Repair Stations 1 | . 1 . Recycling Units 1 | . 1 . Scanalyzers . | . . . Garrison Access . | . . . Total Hacks 21 | . 20 1 Successful 12 | . 11 1 Failed 9 | . 9 . Catastrophic 2 | . 2 . Database Lockouts . | . . . Manual . | . . . Terminals 17 | . 16 1 Fabricators . | . . . Repair Stations 2 | . 2 . Recycling Units 2 | . 2 . Scanalyzers . | . . . Garrison Access . | . . . Terminal Hacks 11 | . 10 1 Prototype ID Bank 2 | . 2 . Emergency Access Points 1 | . 1 . Terminal Index 1 | . 1 . Locate Traps 2 | . 2 . Dispatch Records 1 | . 1 . Security Status 2 | . 2 . Zone Layout 2 | . 1 1 Fabricator Hacks . | . . . Repair Station Hacks . | . . . Recycling Unit Hacks 1 | . 1 . Retrieve Matter 1 | . 1 . Scanalyzer . | . . . Garrison Access Hacks . | . . . Unauthorized Hacks . | . . . Terminals . | . . . Fabricators . | . . . Repair Stations . | . . . Recycling Units . | . . . Scanalyzers . | . . . Garrison Access . | . . . Data Cores Recovered . | . . . Used . | . . . Hacking Detections 5 | . 5 . Full Trace Events 2 | . 2 . Feedback Events . | . . . Feedback Blocked . | . . . Robot Schematics Acquired . | . . . Robots Built . | . . . Authchips . | . . . Time . | . . . Total Robot Build Rating . | . . . Part Schematics Acquired . | . . . Parts Built . | . . . Authchips . | . . . Time . | . . . Total Part Build Rating . | . . . Parts Repaired . | . . . Time . | . . . Parts Recycled . | . . . Recycled Matter . | . . . Retrieved Matter . | . . . Retrieved Components . | . . . Parts Scanalyzed . | . . . Part Schematics Acquired . | . . . Parts Damaged . | . . . Bothacking | -11 -10 -10 ------------ Run | Yrd Mat Min Used RIF Installer . | . . . Robots Hacked . | . . . Non-combat . | . . . Combat . | . . . Robot Hacks Applied . | . . . Relay Couplers Released . | . . . Fabnet Peak Effective % . | . . . Robots Rewired . | . . . Allies Hacked . | . . . Hacks Repelled . | . . . Allies | -11 -10 -10 -------- Run | Yrd Mat Min Total Allies 1 | . . 1 Largest Group 1 | . . 1 Highest-Rated Group 31 | . . 31 Highest-Rated Ally 31 | . . 31 Total Orders . | . . . Ally Attacks 9 | . . 9 Total Damage 128 | . . 128 Kills 2 | . . 2 Allies Corrupted . | . . . Allies Melted . | . . . Intel | -11 -10 -10 ------- Run | Yrd Mat Min Robot Analysis Total . | . . . Derelict Logs Recovered 1 | . . 1 Drone Launches . | . . . Drone Recoveries . | . . . Exploration | -11 -10 -10 ------------- Run | Yrd Mat Min Turns Passed 3150 | 48 2345 757 Spaces Moved 1667 | 47 1075 545 Core 30 | 27 3 . Treads . | . . . Legs 187 | . 187 . Wheels 1450 | 20 885 545 Hover . | . . . Flight . | . . . Fastest Speed 50 | 50 80 130 Average Speed 164 | 71 186 130 Slowest Speed 1400 | 100 1400 130 Overloaded Moves . | . . . Propulsion Burnouts . | . . . Robots Hopped . | . . . Cave-ins Triggered . | . . . Exploration Rate (%) 59 | 3 96 78 Regions Visited 2 Branch Regions 1 Pre-discovered Areas . | . . . Known Exits Taken . | . . . Unknown Exits Taken 2 | 1 1 . Scrap Searched 1 | . . 1 Spaces Dug . | . . . Terrain Destroyed 78 | . 38 40 Melee . | . . . Projectile . | . . . AOE 78 | . 38 40 Terrain Rammed . | . . . Walls Destroyed . | . . . Machines Disabled . | . . . Actions | -11 -10 -10 --------- Run | Yrd Mat Min Total 1967 | 60 1322 585 Wait 165 | 2 140 23 Move 1665 | 46 1074 545 Hop . | . . . Pick Up 41 | 8 27 6 Fast Attach 2 | 2 . . Attach 13 | 1 12 . Detach . | . . . Swap 15 | . 10 5 Drop 5 | 1 2 2 Fire 61 | . 57 4 Melee . | . . . Ram . | . . . Kick . | . . . Crush . | . . . Escape Stasis . | . . . Rewire . | . . . Trap . | . . . Miscellaneous . | . . . Route ------- -11/Scrapyard -10/Materials (discovered 4 exits: [*Mat x2] / *Min x2) -10/Mines (discovered 3 exits: [*Mat x2] / [*Exi]) History --------- Turn | Location | Event 10 | -11/Scrapyard | Discovered new exit (range 14) 49 | -11/Scrapyard | Entered Materials 312 | -10/Materials | Build established: Mutant 579 | -10/Materials | Discovered new exit (range 12) 680 | -10/Materials | Core integrity fell below 50% 1740 | -10/Materials | Discovered new exit (range 5) 1744 | -10/Materials | Discovered new exit (range 12) 2280 | -10/Materials | Discovered new exit (range 12) 2394 | -10/Materials | Entered Mines 2395 | -10/Mines | Met a Derelict testing a Signal Generator 2429 | -10/Mines | Deemed a non-threat by the Exiles lab entrance 2430 | -10/Mines | Discovered new exit (range 5) 2739 | -10/Mines | Discovered new exit (range 11) 2771 | -10/Mines | Learned Materials stockpile data 2852 | -10/Mines | Found a damaged Exp. Sensor Array with a note attached 2857 | -10/Mines | Found Prototype Device 2858 | -10/Mines | Identified Exp. Sensor Array 2920 | -10/Mines | Discovered new exit (range 6) 2925 | -10/Mines | Core integrity fell below 20% 3151 | -10/Mines | Destroyed by Y-45 Defender with Heavy Assault Rifle Last Messages --------------- Acquired 5 matter. Acquired Lgt. Ion Engine. Dropped Hcp. Matter Pod. Dropped Lrg. Battery. Acquired Flight Unit. U-05 Engineer lays Concrete. Once familiar with the basic mechanics, press ESC then '3' to read the in-game manual for more details. Searching scrap... Found Hcp. Storage Unit. Found Grenade Launcher. Found Huge Storage Unit. Found 35 Matter. Acquired 35 matter. T-07 Excavator is excavating. K-01 Serf collects debris. OJ-TO6(g) destroyed. Machine disabled. K-01 Serf collects debris. Map ----- +----------------------------------------------------+ | ??????########### #?????????# | | ??????# #?????????## | | ??????# ###########??????????### | | ??????# #??????????????????????# | | ??????# #??????????????????????? | | ??????# #??????????????????????? | | ??????# #??????????????????????? | | ??????# #???????#######????????? | | ?????## ######?## ####?????# | | ????## ### ## | | ???## ] ""?? | | ???# # ## ""?? | | ??# ########!! ###???????? | | ??# #??????#? ###?????????? | | ??## #??????# #???????????? | | ???########?????# #???????????? | | ???## #?????# #???????????? | | ???# Y ??????# #???????????? | | ???# ! !!?#????# #???????????? | | ???#! ! #????# #???????????? | | ???? Y # #????# #???????????? | | ???### #????# #???????????? | | ???# #????# #???????????? | | ???# ##???# #???????????? | | ???# #???# #???????????? | | ???# @ #???# ####????????? | | ???# % #???# #????????? | | ???# #???# #????????? | | ???# #???#### #????????? | | ???# #?####?# #????????? | | ???# ### ### #????????? | | ???###### ### ## ##???????? | | ????????# ##??????? | | ????????# ### ##?????? | | ????????# #?# #?????? | | ???????## ### """ #?????? | | ??????##? ## """ #?????? | | ?????## """ ##????? | | ?????# #????? | | ?????# ### #???? | | ?????## ##?## #???? | | ??????# ###???# #???? | | ?????# ##?????# ## ##???? | | ?????# #??????# #?###????? | | ?????## ##??????# ##????????? | | ??????## #???????###?????????? | | ???????# ##???????????????????? | | ???????###?????????????????????? | | ???????????????????????????????? | | ???????????????????????????????? | +----------------------------------------------------+ Best States ------------- Heat Dissipation 25 Energy Generation 10 Energy Capacity 450 Matter Stores 300 Matter Capacity 300 Sight Range 16 Robot Scan Range 20 Terrain Scan Density 10 Core Shielding 20 Evasion (%) 50 Item Schematics ----------------- None Robot Schematics ------------------ None Fabricated ------------ Nothing Alien Tech Used ----------------- None Achievements -------------- None Challenges ------------ None Game ------ Seed SubatomicNuclearExpander Manual? 0 Play Time 00:29:05 Cumulative 6.2 hours Start 2024.06.24 @ 15:06:28 End 2024.06.24 @ 15:35:58 Sessions 1 Manual Loads 0 Difficulty Rogue Special Mode None Game No. 8 Rogue 8 Adventurer 0 Explorer 0 Win Type - Total 0 Types 0/0/0/0/0/0/0/0/0 Lore% 9 Gallery% 10 Achievement% 10 Wizard Run 0 Options --------- Layout 1 ASCII 0 Keyboard 0 Movement Arrows Keybinds 0 Fullscreen 1 Font 16/SmallcapsGlow Map View 25x20 Zoom Use 86% Tactical HUD 0 Map Filters NONE Filters NONE Steam SD RUN: ad7424e0-e5a9-4a68-b078-ee61f2c39b41